[Event "January 9 Late 2024"]
[Site "https://www.chess.com"]
[Date "2024.01.10"]
[Round "2"]
[White "Akobian, Varuzhan"]
[Black "Kargosha, Bahman"]
[Result "1-0"]
[Board "106"]
[TimeControl "180+1"]
[WhiteFideId "13300580"]
[BlackFideId "12503452"]
[WhiteElo "2728"]
[BlackElo "2299"]
[WhiteTeam "USA"]
[BlackTeam "AUS"]
[WhiteClock "0:00:28"]
[BlackClock "0:00:14"]

1. d4 {[%clk 0:03:00]}  Nf6 {[%clk 0:03:00]} 2. c4 {[%clk 0:03:00]}  c5 {[%clk 0:03:00]} 3. d5 {[%clk 0:03:00]}  b5 {[%clk 0:03:00]} 4. Nf3 {[%clk 0:02:59]}  e6 {[%clk 0:03:00]} 5. Bg5 {[%clk 0:02:58]}  exd5 {[%clk 0:02:59]} 6. cxd5 {[%clk 0:02:58]}  d6 {[%clk 0:03:00]} 7. e4 {[%clk 0:02:55]}  a6 {[%clk 0:02:51]} 8. a4 {[%clk 0:02:53]}  Be7 {[%clk 0:02:51]} 9. Qc2 {[%clk 0:02:42]}  Nxd5 {[%clk 0:02:40]} 10. exd5 {[%clk 0:02:39]}  Bxg5 {[%clk 0:02:39]} 11. axb5 {[%clk 0:02:37]}  O-O {[%clk 0:02:38]} 12. Nc3 {[%clk 0:02:36]}  Re8+ {[%clk 0:02:26]} 13. Be2 {[%clk 0:02:35]}  Bg4 {[%clk 0:02:23]} 14. O-O {[%clk 0:02:34]}  Bf6 {[%clk 0:02:13]} 15. Ra4 {[%clk 0:02:21]}  Bxf3 {[%clk 0:01:58]} 16. Bxf3 {[%clk 0:02:19]}  a5 {[%clk 0:01:44]} 17. Ne4 {[%clk 0:02:02]}  Bd4 {[%clk 0:01:30]} 18. Rd1 {[%clk 0:01:58]}  Qb6 {[%clk 0:01:26]} 19. Be2 {[%clk 0:01:41]}  Nd7 {[%clk 0:01:23]} 20. Bd3 {[%clk 0:01:33]}  g6 {[%clk 0:01:21]} 21. h3 {[%clk 0:01:16]}  Ne5 {[%clk 0:01:18]} 22. Nf6+ {[%clk 0:01:14]}  Kg7 {[%clk 0:01:17]} 23. Nxe8+ {[%clk 0:01:13]}  Rxe8 {[%clk 0:01:18]} 24. Bf1 {[%clk 0:01:10]}  c4 {[%clk 0:01:04]} 25. Bxc4 {[%clk 0:01:07]}  Rc8 {[%clk 0:00:59]} 26. Qd2 {[%clk 0:00:54]}  Bc5 {[%clk 0:00:34]} 27. b3 {[%clk 0:00:54]}  Bb4 {[%clk 0:00:29]} 28. Qd4 {[%clk 0:00:45]}  Bc5 {[%clk 0:00:25]} 29. Qb2 {[%clk 0:00:33]}  Re8 {[%clk 0:00:20]} 30. Ra2 {[%clk 0:00:32]}  Bd4 {[%clk 0:00:14]} 31. Qxd4 {[%clk 0:00:28]} 1-0

[Event "January 9 Late 2024"]
[Site "https://www.chess.com"]
[Date "2024.01.09"]
[Round "2"]
[White "Silvestre, Christian"]
[Black "Hambleton, Aman"]
[Result "1-0"]
[Board "107"]
[TimeControl "180+1"]
[WhiteFideId "30956269"]
[BlackFideId "2606577"]
[WhiteElo "2287"]
[BlackElo "2726"]
[WhiteTeam "USA"]
[BlackTeam "CAN"]
[WhiteClock "0:00:36"]
[BlackClock "0:00:01"]

1. e4 {[%clk 0:02:59]}  b6 {[%clk 0:02:56]} 2. d4 {[%clk 0:02:58]}  Bb7 {[%clk 0:02:49]} 3. Bd3 {[%clk 0:02:57]}  e6 {[%clk 0:02:49]} 4. Qe2 {[%clk 0:02:57]}  d5 {[%clk 0:02:49]} 5. Nf3 {[%clk 0:02:56]}  dxe4 {[%clk 0:02:48]} 6. Bxe4 {[%clk 0:02:56]}  Bxe4 {[%clk 0:02:49]} 7. Qxe4 {[%clk 0:02:56]}  Qd5 {[%clk 0:02:50]} 8. Qxd5 {[%clk 0:02:52]}  exd5 {[%clk 0:02:51]} 9. Bf4 {[%clk 0:02:50]}  Na6 {[%clk 0:02:37]} 10. a3 {[%clk 0:02:43]}  f6 {[%clk 0:02:34]} 11. Nc3 {[%clk 0:02:34]}  Ne7 {[%clk 0:02:31]} 12. O-O-O {[%clk 0:02:33]}  Kd7 {[%clk 0:02:31]} 13. Rhe1 {[%clk 0:02:31]}  g5 {[%clk 0:02:18]} 14. Bd2 {[%clk 0:02:22]}  c6 {[%clk 0:02:07]} 15. h4 {[%clk 0:02:14]}  g4 {[%clk 0:01:57]} 16. Nh2 {[%clk 0:02:13]}  h5 {[%clk 0:01:55]} 17. Nf1 {[%clk 0:02:13]}  Nf5 {[%clk 0:01:51]} 18. Ng3 {[%clk 0:01:50]}  Nxg3 {[%clk 0:01:03]} 19. fxg3 {[%clk 0:01:49]}  Nc7 {[%clk 0:00:53]} 20. Rf1 {[%clk 0:01:35]}  Be7 {[%clk 0:00:44]} 21. Ne2 {[%clk 0:01:30]}  Ne6 {[%clk 0:00:43]} 22. Bf4 {[%clk 0:01:22]}  Rae8 {[%clk 0:00:37]} 23. Kd2 {[%clk 0:01:20]}  Rhf8 {[%clk 0:00:23]} 24. Bh6 {[%clk 0:01:17]}  Rh8 {[%clk 0:00:20]} 25. Bf4 {[%clk 0:01:18]}  Rh7 {[%clk 0:00:20]} 26. Kd3 {[%clk 0:01:15]}  c5 {[%clk 0:00:19]} 27. c4 {[%clk 0:01:10]}  dxc4+ {[%clk 0:00:03]} 28. Kxc4 {[%clk 0:01:10]}  cxd4 {[%clk 0:00:04]} 29. Nxd4 {[%clk 0:01:09]}  Nxd4 {[%clk 0:00:05]} 30. Rxd4+ {[%clk 0:01:08]}  Kc6 {[%clk 0:00:05]} 31. Re1 {[%clk 0:01:07]}  Rc8 {[%clk 0:00:02]} 32. Kd3 {[%clk 0:01:02]}  Bc5 {[%clk 0:00:01]} 33. Re6+ {[%clk 0:01:02]}  Kb5 {[%clk 0:00:01]} 34. Rd5 {[%clk 0:01:01]}  Rf7 {[%clk 0:00:01]} 35. b4 {[%clk 0:01:00]}  Ka4 {[%clk 0:00:01]} 36. bxc5 {[%clk 0:01:00]}  bxc5 {[%clk 0:00:02]} 37. Kc4 {[%clk 0:00:57]}  Kxa3 {[%clk 0:00:02]} 38. Rd3+ {[%clk 0:00:52]}  Kb2 {[%clk 0:00:02]} 39. Re2+ {[%clk 0:00:51]}  Kb1 {[%clk 0:00:01]} 40. Rd1# {[%clk 0:00:36]} 1-0

[Event "January 9 Late 2024"]
[Site "https://www.chess.com"]
[Date "2024.01.09"]
[Round "2"]
[White "Korchmar, Vasiliy"]
[Black "Kornyukov, Alexey"]
[Result "1-0"]
[Board "108"]
[TimeControl "180+1"]
[WhiteFideId "24131750"]
[BlackFideId "4150457"]
[WhiteElo "2725"]
[BlackElo "2264"]
[WhiteTeam "RUS"]
[BlackTeam "RUS"]
[WhiteClock "0:00:33"]
[BlackClock "0:00:00"]

1. e4 {[%clk 0:03:00]}  c5 {[%clk 0:02:59]} 2. d4 {[%clk 0:03:00]}  cxd4 {[%clk 0:02:58]} 3. Qxd4 {[%clk 0:03:01]}  Nc6 {[%clk 0:02:57]} 4. Qd3 {[%clk 0:03:02]}  Nf6 {[%clk 0:02:45]} 5. Nc3 {[%clk 0:03:02]}  e5 {[%clk 0:02:37]} 6. Bg5 {[%clk 0:02:59]}  Bb4 {[%clk 0:02:21]} 7. Ne2 {[%clk 0:02:59]}  Qa5 {[%clk 0:01:52]} 8. Bxf6 {[%clk 0:02:56]}  gxf6 {[%clk 0:01:53]} 9. O-O-O {[%clk 0:02:56]}  d6 {[%clk 0:01:48]} 10. a3 {[%clk 0:02:39]}  Bc5 {[%clk 0:01:46]} 11. Nd5 {[%clk 0:02:29]}  Be6 {[%clk 0:01:03]} 12. Nec3 {[%clk 0:02:29]}  O-O-O {[%clk 0:00:53]} 13. Qf3 {[%clk 0:02:03]}  Nd4 {[%clk 0:00:46]} 14. Qxf6 {[%clk 0:02:01]}  Kb8 {[%clk 0:00:15]} 15. Kb1 {[%clk 0:02:01]}  Bxd5 {[%clk 0:00:13]} 16. Nxd5 {[%clk 0:02:01]}  Bxa3 {[%clk 0:00:14]} 17. bxa3 {[%clk 0:01:35]}  Qc5 {[%clk 0:00:14]} 18. Ne3 {[%clk 0:01:06]}  Rc8 {[%clk 0:00:09]} 19. Bc4 {[%clk 0:00:46]}  Qb6+ {[%clk 0:00:05]} 20. Ka1 {[%clk 0:00:35]}  Rxc4 {[%clk 0:00:00]} 21. Nxc4 {[%clk 0:00:33]} 1-0

[Event "January 9 Late 2024"]
[Site "https://www.chess.com"]
[Date "2024.01.09"]
[Round "2"]
[White "Dahlgren, James Allen"]
[Black "Nagare Kaivalya Sandip"]
[Result "0-1"]
[Board "109"]
[TimeControl "180+1"]
[WhiteFideId "22256873"]
[BlackFideId "25957929"]
[WhiteElo "2120"]
[BlackElo "2725"]
[WhiteTeam "ESP"]
[BlackTeam "IND"]
[WhiteClock "0:00:00"]
[BlackClock "0:01:42"]

1. e3 {[%clk 0:02:59]}  e5 {[%clk 0:02:59]} 2. c4 {[%clk 0:03:00]}  Nf6 {[%clk 0:02:58]} 3. Nc3 {[%clk 0:03:01]}  Nc6 {[%clk 0:02:56]} 4. d4 {[%clk 0:02:59]}  exd4 {[%clk 0:02:56]} 5. exd4 {[%clk 0:03:00]}  Bb4 {[%clk 0:02:56]} 6. Nf3 {[%clk 0:03:00]}  O-O {[%clk 0:02:57]} 7. Bd3 {[%clk 0:02:47]}  Re8+ {[%clk 0:02:56]} 8. Be3 {[%clk 0:02:42]}  d5 {[%clk 0:02:52]} 9. O-O {[%clk 0:02:39]}  Bg4 {[%clk 0:02:48]} 10. a3 {[%clk 0:02:30]}  Bxc3 {[%clk 0:02:43]} 11. bxc3 {[%clk 0:02:31]}  dxc4 {[%clk 0:02:40]} 12. Bxc4 {[%clk 0:02:32]}  Nd5 {[%clk 0:02:41]} 13. Bd2 {[%clk 0:01:34]}  Qd7 {[%clk 0:02:30]} 14. h3 {[%clk 0:01:17]}  Bh5 {[%clk 0:02:30]} 15. Rb1 {[%clk 0:01:11]}  Nb6 {[%clk 0:02:30]} 16. Be2 {[%clk 0:00:59]}  Bg6 {[%clk 0:02:20]} 17. Rb2 {[%clk 0:00:56]}  f6 {[%clk 0:02:19]} 18. Re1 {[%clk 0:00:52]}  Bf7 {[%clk 0:02:19]} 19. Bf4 {[%clk 0:00:45]}  Na5 {[%clk 0:02:16]} 20. Nd2 {[%clk 0:00:38]}  c6 {[%clk 0:02:02]} 21. Bf1 {[%clk 0:00:32]}  Nac4 {[%clk 0:01:59]} 22. Nxc4 {[%clk 0:00:32]}  Nxc4 {[%clk 0:01:54]} 23. Bxc4 {[%clk 0:00:30]}  Bxc4 {[%clk 0:01:55]} 24. Rxe8+ {[%clk 0:00:25]}  Rxe8 {[%clk 0:01:56]} 25. Be3 {[%clk 0:00:21]}  b5 {[%clk 0:01:54]} 26. Qf3 {[%clk 0:00:21]}  Bd5 {[%clk 0:01:50]} 27. Qg3 {[%clk 0:00:21]}  Qe7 {[%clk 0:01:46]} 28. a4 {[%clk 0:00:21]}  bxa4 {[%clk 0:01:46]} 29. Rb8 {[%clk 0:00:19]}  a3 {[%clk 0:01:44]} 30. Rxe8+ {[%clk 0:00:20]}  Qxe8 {[%clk 0:01:45]} 31. Qd6 {[%clk 0:00:17]}  a2 {[%clk 0:01:44]} 32. Qa3 {[%clk 0:00:17]}  Qb8 {[%clk 0:01:43]} 33. Bc1 {[%clk 0:00:00]}  Qb1 {[%clk 0:01:42]} 0-1

[Event "January 9 Late 2024"]
[Site "https://www.chess.com"]
[Date "2024.01.09"]
[Round "2"]
[White "Tari, Aryan"]
[Black "Martin Barcelo, Carles"]
[Result "0-1"]
[Board "113"]
[TimeControl "180+1"]
[WhiteFideId "1510045"]
[BlackFideId "24561444"]
[WhiteElo "2915"]
[BlackElo "2509"]
[WhiteTeam "NOR"]
[BlackTeam "ESP"]
[WhiteClock "0:00:01"]
[BlackClock "0:00:04"]

1. e4 {[%clk 0:03:00]}  e6 {[%clk 0:02:57]} 2. d4 {[%clk 0:02:58]}  d5 {[%clk 0:02:55]} 3. exd5 {[%clk 0:02:59]}  exd5 {[%clk 0:02:56]} 4. Nf3 {[%clk 0:02:59]}  Bd6 {[%clk 0:02:50]} 5. c4 {[%clk 0:02:53]}  c6 {[%clk 0:02:49]} 6. Nc3 {[%clk 0:02:52]}  Ne7 {[%clk 0:02:49]} 7. Bd3 {[%clk 0:02:52]}  O-O {[%clk 0:02:44]} 8. O-O {[%clk 0:02:52]}  Bf5 {[%clk 0:02:42]} 9. Bxf5 {[%clk 0:02:40]}  Nxf5 {[%clk 0:02:43]} 10. Qb3 {[%clk 0:02:39]}  dxc4 {[%clk 0:02:21]} 11. Qxb7 {[%clk 0:02:38]}  Qb6 {[%clk 0:02:22]} 12. Qxa8 {[%clk 0:02:33]}  Nd7 {[%clk 0:02:14]} 13. Qxf8+ {[%clk 0:02:25]}  Nxf8 {[%clk 0:02:03]} 14. d5 {[%clk 0:02:18]}  h6 {[%clk 0:01:50]} 15. dxc6 {[%clk 0:01:52]}  Qxc6 {[%clk 0:01:51]} 16. Bd2 {[%clk 0:01:53]}  Ne6 {[%clk 0:01:48]} 17. Rae1 {[%clk 0:01:49]}  Bc5 {[%clk 0:01:43]} 18. Ne4 {[%clk 0:01:44]}  Nfd4 {[%clk 0:01:35]} 19. Ne5 {[%clk 0:01:40]}  Qd5 {[%clk 0:01:33]} 20. Nxc5 {[%clk 0:01:39]}  Qxc5 {[%clk 0:01:34]} 21. Re4 {[%clk 0:01:19]}  Qd5 {[%clk 0:01:27]} 22. Re3 {[%clk 0:00:16]}  Nf5 {[%clk 0:00:55]} 23. Bc3 {[%clk 0:00:11]}  Nxe3 {[%clk 0:00:54]} 24. fxe3 {[%clk 0:00:12]}  f6 {[%clk 0:00:42]} 25. Ng6 {[%clk 0:00:12]}  Kh7 {[%clk 0:00:39]} 26. Ne7 {[%clk 0:00:11]}  Qe4 {[%clk 0:00:38]} 27. Nf5 {[%clk 0:00:11]}  Nc5 {[%clk 0:00:29]} 28. h3 {[%clk 0:00:12]}  Nd3 {[%clk 0:00:29]} 29. Kh2 {[%clk 0:00:12]}  Ne5 {[%clk 0:00:29]} 30. Rf4 {[%clk 0:00:11]}  Qc2 {[%clk 0:00:25]} 31. Nd4 {[%clk 0:00:08]}  Qd3 {[%clk 0:00:23]} 32. e4 {[%clk 0:00:05]}  Qe3 {[%clk 0:00:22]} 33. Ne6 {[%clk 0:00:05]}  Qe2 {[%clk 0:00:08]} 34. Nf8+ {[%clk 0:00:05]}  Kg8 {[%clk 0:00:08]} 35. Ne6 {[%clk 0:00:05]}  Kh7 {[%clk 0:00:08]} 36. Bxe5 {[%clk 0:00:04]}  fxe5 {[%clk 0:00:09]} 37. Rf7 {[%clk 0:00:05]}  Qxe4 {[%clk 0:00:09]} 38. Rxg7+ {[%clk 0:00:04]}  Kh8 {[%clk 0:00:10]} 39. Rxa7 {[%clk 0:00:05]}  Qf5 {[%clk 0:00:07]} 40. Re7 {[%clk 0:00:03]}  e4 {[%clk 0:00:05]} 41. Re8+ {[%clk 0:00:03]}  Kh7 {[%clk 0:00:05]} 42. Re7+ {[%clk 0:00:03]}  Kg8 {[%clk 0:00:04]} 43. Kg3 {[%clk 0:00:02]}  Qe5+ {[%clk 0:00:03]} 44. Kh4 {[%clk 0:00:01]}  Qf6+ {[%clk 0:00:03]} 45. Kh5 {[%clk 0:00:01]}  Qxe7 {[%clk 0:00:03]} 46. Nd4 {[%clk 0:00:01]}  Qg5# {[%clk 0:00:04]} 0-1

[Event "January 9 Late 2024"]
[Site "https://www.chess.com"]
[Date "2024.01.09"]
[Round "2"]
[White "Sroczynski, Maciej"]
[Black "Schnaider, Ilan"]
[Result "0-1"]
[Board "118"]
[TimeControl "180+1"]
[WhiteFideId "1121472"]
[BlackFideId "169013"]
[WhiteElo "2447"]
[BlackElo "2736"]
[WhiteTeam "POL"]
[BlackTeam "ARG"]
[WhiteClock "0:01:05"]
[BlackClock "0:00:43"]

1. d4 {[%clk 0:03:00]}  Nf6 {[%clk 0:02:56]} 2. c4 {[%clk 0:02:59]}  g6 {[%clk 0:02:56]} 3. Nc3 {[%clk 0:02:59]}  d5 {[%clk 0:02:56]} 4. Nf3 {[%clk 0:02:44]}  Bg7 {[%clk 0:02:55]} 5. Bf4 {[%clk 0:02:37]}  O-O {[%clk 0:02:54]} 6. e3 {[%clk 0:02:37]}  c5 {[%clk 0:02:55]} 7. dxc5 {[%clk 0:02:33]}  Qa5 {[%clk 0:02:55]} 8. Nd2 {[%clk 0:02:31]}  dxc4 {[%clk 0:02:41]} 9. Bxc4 {[%clk 0:02:27]}  Rd8 {[%clk 0:02:34]} 10. Qb3 {[%clk 0:02:21]}  e6 {[%clk 0:02:08]} 11. Qb5 {[%clk 0:02:17]}  Nc6 {[%clk 0:01:48]} 12. Nb3 {[%clk 0:02:13]}  Qxb5 {[%clk 0:01:42]} 13. Nxb5 {[%clk 0:02:13]}  Bd7 {[%clk 0:01:21]} 14. Ke2 {[%clk 0:01:58]}  Nb4 {[%clk 0:01:00]} 15. Bd6 {[%clk 0:01:46]}  Ne4 {[%clk 0:00:54]} 16. a3 {[%clk 0:01:38]}  Nd5 {[%clk 0:00:47]} 17. Bxd5 {[%clk 0:01:34]}  Bxb5+ {[%clk 0:00:47]} 18. Kf3 {[%clk 0:01:12]}  exd5 {[%clk 0:00:43]} 19. Rhd1 {[%clk 0:01:10]}  Nxd6 {[%clk 0:00:42]} 20. cxd6 {[%clk 0:01:09]}  Rxd6 {[%clk 0:00:42]} 21. Nd4 {[%clk 0:01:09]}  Bxd4 {[%clk 0:00:42]} 22. Rxd4 {[%clk 0:01:09]}  Rc8 {[%clk 0:00:42]} 23. a4 {[%clk 0:01:07]}  Bd7 {[%clk 0:00:42]} 24. Rad1 {[%clk 0:01:06]}  Rc2 {[%clk 0:00:42]} 25. Rxd5 {[%clk 0:01:06]}  Rxd5 {[%clk 0:00:42]} 26. Rxd5 {[%clk 0:01:05]}  Bc6 {[%clk 0:00:43]} 0-1

[Event "January 9 Late 2024"]
[Site "https://www.chess.com"]
[Date "2024.01.09"]
[Round "2"]
[White "Khatoev, Eduard"]
[Black "Kovalevsky, Stanislav"]
[Result "1-0"]
[Board "119"]
[TimeControl "180+1"]
[WhiteFideId "24145076"]
[BlackFideId "13508598"]
[WhiteElo "2732"]
[BlackElo "2421"]
[WhiteTeam "RUS"]
[BlackTeam "FID"]
[WhiteClock "0:01:43"]
[BlackClock "0:00:07"]

1. Nf3 {[%clk 0:03:00]}  d5 {[%clk 0:02:59]} 2. e3 {[%clk 0:03:00]}  Bg4 {[%clk 0:02:58]} 3. h3 {[%clk 0:03:00]}  Bh5 {[%clk 0:02:58]} 4. g4 {[%clk 0:02:59]}  Bg6 {[%clk 0:02:58]} 5. Ne5 {[%clk 0:02:57]}  Nc6 {[%clk 0:02:57]} 6. Nxg6 {[%clk 0:02:57]}  hxg6 {[%clk 0:02:58]} 7. Nc3 {[%clk 0:02:56]}  e5 {[%clk 0:02:57]} 8. Bg2 {[%clk 0:02:56]}  e4 {[%clk 0:02:44]} 9. a3 {[%clk 0:02:54]}  Ne5 {[%clk 0:02:37]} 10. d4 {[%clk 0:02:53]}  Nc6 {[%clk 0:02:16]} 11. Bd2 {[%clk 0:02:44]}  Nf6 {[%clk 0:02:14]} 12. f3 {[%clk 0:02:43]}  Bd6 {[%clk 0:02:05]} 13. fxe4 {[%clk 0:02:42]}  Bg3+ {[%clk 0:02:02]} 14. Kf1 {[%clk 0:02:42]}  dxe4 {[%clk 0:01:57]} 15. Nxe4 {[%clk 0:02:41]}  Nxe4 {[%clk 0:01:41]} 16. Bxe4 {[%clk 0:02:41]}  Nxd4 {[%clk 0:01:28]} 17. exd4 {[%clk 0:02:38]}  Qxd4 {[%clk 0:01:29]} 18. Qe2 {[%clk 0:02:38]}  O-O-O {[%clk 0:01:29]} 19. Bd3 {[%clk 0:02:34]}  Rd6 {[%clk 0:01:05]} 20. Kg2 {[%clk 0:02:33]}  Bh4 {[%clk 0:00:51]} 21. Rhf1 {[%clk 0:02:32]}  Re6 {[%clk 0:00:49]} 22. Qf3 {[%clk 0:02:27]}  Rf6 {[%clk 0:00:49]} 23. Bc3 {[%clk 0:02:25]}  Rxf3 {[%clk 0:00:19]} 24. Bxd4 {[%clk 0:02:24]}  Rg3+ {[%clk 0:00:19]} 25. Kh1 {[%clk 0:02:22]}  Rxh3+ {[%clk 0:00:18]} 26. Kg2 {[%clk 0:02:23]}  Rg3+ {[%clk 0:00:18]} 27. Kh2 {[%clk 0:02:09]}  Rxg4 {[%clk 0:00:18]} 28. Bxg7 {[%clk 0:02:06]}  Rh7 {[%clk 0:00:16]} 29. Kh3 {[%clk 0:02:05]}  f5 {[%clk 0:00:14]} 30. Rxf5 {[%clk 0:02:03]}  Rg3+ {[%clk 0:00:12]} 31. Kh2 {[%clk 0:02:03]}  Rxg7 {[%clk 0:00:12]} 32. Rf8+ {[%clk 0:02:01]}  Kd7 {[%clk 0:00:13]} 33. Rd1 {[%clk 0:02:00]}  Kc6 {[%clk 0:00:12]} 34. Bf1 {[%clk 0:01:58]}  Rh7 {[%clk 0:00:11]} 35. Rf4 {[%clk 0:01:56]}  Rg5 {[%clk 0:00:10]} 36. Rf6+ {[%clk 0:01:43]}  Kc5 {[%clk 0:00:07]} 37. b4# {[%clk 0:01:43]} 1-0

[Event "January 9 Late 2024"]
[Site "https://www.chess.com"]
[Date "2024.01.09"]
[Round "2"]
[White "Rubio Tent, Francisco"]
[Black "Agibileg, Uurtsaikh"]
[Result "0-1"]
[Board "121"]
[TimeControl "180+1"]
[WhiteFideId "2238233"]
[BlackFideId "4901606"]
[WhiteElo "2416"]
[BlackElo "2718"]
[WhiteTeam "ESP"]
[BlackTeam "MGL"]
[WhiteClock "0:00:00"]
[BlackClock "0:00:09"]

1. e4 {[%clk 0:02:52]}  e5 {[%clk 0:02:58]} 2. Nf3 {[%clk 0:02:52]}  Nc6 {[%clk 0:02:58]} 3. Bb5 {[%clk 0:02:51]}  a6 {[%clk 0:02:55]} 4. Ba4 {[%clk 0:02:50]}  Nf6 {[%clk 0:02:55]} 5. d3 {[%clk 0:02:50]}  d6 {[%clk 0:02:54]} 6. c3 {[%clk 0:02:48]}  Bd7 {[%clk 0:02:53]} 7. O-O {[%clk 0:02:46]}  g6 {[%clk 0:02:53]} 8. Re1 {[%clk 0:02:45]}  Bg7 {[%clk 0:02:54]} 9. d4 {[%clk 0:02:45]}  O-O {[%clk 0:02:49]} 10. h3 {[%clk 0:02:45]}  exd4 {[%clk 0:01:50]} 11. cxd4 {[%clk 0:02:44]}  d5 {[%clk 0:01:51]} 12. e5 {[%clk 0:02:36]}  Ne4 {[%clk 0:01:51]} 13. Nc3 {[%clk 0:02:36]}  Bf5 {[%clk 0:01:46]} 14. Bb3 {[%clk 0:02:29]}  Nxc3 {[%clk 0:01:44]} 15. bxc3 {[%clk 0:02:28]}  Na5 {[%clk 0:01:45]} 16. Bg5 {[%clk 0:02:18]}  Qd7 {[%clk 0:01:38]} 17. Qd2 {[%clk 0:02:17]}  Nxb3 {[%clk 0:01:29]} 18. axb3 {[%clk 0:02:18]}  Be4 {[%clk 0:01:29]} 19. Qf4 {[%clk 0:02:10]}  Qf5 {[%clk 0:01:16]} 20. Nd2 {[%clk 0:02:08]}  Qxf4 {[%clk 0:01:15]} 21. Bxf4 {[%clk 0:02:09]}  Bf5 {[%clk 0:01:15]} 22. g4 {[%clk 0:01:32]}  Bd7 {[%clk 0:01:12]} 23. Bg3 {[%clk 0:01:25]}  Rac8 {[%clk 0:01:07]} 24. b4 {[%clk 0:01:24]}  h6 {[%clk 0:01:04]} 25. f4 {[%clk 0:01:24]}  Rfe8 {[%clk 0:01:05]} 26. Nb3 {[%clk 0:01:17]}  Bf8 {[%clk 0:00:47]} 27. Kf2 {[%clk 0:01:14]}  Bb5 {[%clk 0:00:46]} 28. Re3 {[%clk 0:01:00]}  b6 {[%clk 0:00:47]} 29. f5 {[%clk 0:00:53]}  c5 {[%clk 0:00:43]} 30. bxc5 {[%clk 0:00:48]}  bxc5 {[%clk 0:00:39]} 31. Nxc5 {[%clk 0:00:40]}  Rxc5 {[%clk 0:00:27]} 32. dxc5 {[%clk 0:00:41]}  Bxc5 {[%clk 0:00:28]} 33. Kf3 {[%clk 0:00:35]}  d4 {[%clk 0:00:27]} 34. cxd4 {[%clk 0:00:25]}  Bxd4 {[%clk 0:00:27]} 35. Rc1 {[%clk 0:00:24]}  Bxe3 {[%clk 0:00:24]} 36. Kxe3 {[%clk 0:00:25]}  Rd8 {[%clk 0:00:20]} 37. e6 {[%clk 0:00:21]}  fxe6 {[%clk 0:00:20]} 38. fxe6 {[%clk 0:00:22]}  Re8 {[%clk 0:00:20]} 39. Rc7 {[%clk 0:00:17]}  Rxe6+ {[%clk 0:00:20]} 40. Kd4 {[%clk 0:00:15]}  h5 {[%clk 0:00:18]} 41. Be5 {[%clk 0:00:15]}  Kf8 {[%clk 0:00:18]} 42. Ra7 {[%clk 0:00:13]}  Ke8 {[%clk 0:00:14]} 43. Kd5 {[%clk 0:00:13]}  Rb6 {[%clk 0:00:14]} 44. Bd6 {[%clk 0:00:12]}  Bd7 {[%clk 0:00:11]} 45. Bc5 {[%clk 0:00:06]}  Rf6 {[%clk 0:00:10]} 46. Ra8+ {[%clk 0:00:06]}  Kf7 {[%clk 0:00:10]} 47. gxh5 {[%clk 0:00:04]}  Bc6+ {[%clk 0:00:09]} 48. Kd4 {[%clk 0:00:00]}  Bxa8 {[%clk 0:00:09]} 0-1

[Event "January 9 Late 2024"]
[Site "https://www.chess.com"]
[Date "2024.01.09"]
[Round "2"]
[White "Perske, Thore"]
[Black "Bonin, Jay"]
[Result "1-0"]
[Board "125"]
[TimeControl "180+1"]
[WhiteFideId "12902195"]
[BlackFideId "2000644"]
[WhiteElo "2640"]
[BlackElo "2319"]
[WhiteTeam "GER"]
[BlackTeam "USA"]
[WhiteClock "0:00:11"]
[BlackClock "0:00:08"]

1. e4 {[%clk 0:02:58]}  c5 {[%clk 0:02:57]} 2. Nf3 {[%clk 0:02:58]}  Nc6 {[%clk 0:02:57]} 3. g3 {[%clk 0:02:57]}  e5 {[%clk 0:02:54]} 4. Bg2 {[%clk 0:02:56]}  g6 {[%clk 0:02:53]} 5. O-O {[%clk 0:02:57]}  Bg7 {[%clk 0:02:52]} 6. d3 {[%clk 0:02:57]}  Nge7 {[%clk 0:02:51]} 7. Nc3 {[%clk 0:02:58]}  d6 {[%clk 0:02:50]} 8. a4 {[%clk 0:02:58]}  h6 {[%clk 0:02:49]} 9. Nd2 {[%clk 0:02:55]}  O-O {[%clk 0:02:46]} 10. Nc4 {[%clk 0:02:55]}  Be6 {[%clk 0:02:40]} 11. Nd5 {[%clk 0:02:54]}  Bxd5 {[%clk 0:02:36]} 12. exd5 {[%clk 0:02:53]}  Nb4 {[%clk 0:02:35]} 13. Ne3 {[%clk 0:02:53]}  f5 {[%clk 0:02:35]} 14. c3 {[%clk 0:02:53]}  Na6 {[%clk 0:02:32]} 15. Qb3 {[%clk 0:02:51]}  Rb8 {[%clk 0:02:28]} 16. f4 {[%clk 0:02:49]}  exf4 {[%clk 0:02:18]} 17. gxf4 {[%clk 0:02:48]}  Kh7 {[%clk 0:02:14]} 18. Bd2 {[%clk 0:02:35]}  g5 {[%clk 0:02:03]} 19. h3 {[%clk 0:02:23]}  gxf4 {[%clk 0:02:00]} 20. Rxf4 {[%clk 0:02:21]}  Be5 {[%clk 0:01:56]} 21. Rf2 {[%clk 0:02:19]}  Bg3 {[%clk 0:01:45]} 22. Rf3 {[%clk 0:02:14]}  f4 {[%clk 0:01:44]} 23. Ng4 {[%clk 0:02:12]}  Nf5 {[%clk 0:01:41]} 24. Qc4 {[%clk 0:01:49]}  h5 {[%clk 0:01:33]} 25. Nf2 {[%clk 0:01:36]}  Nh4 {[%clk 0:01:29]} 26. Rxg3 {[%clk 0:01:03]}  fxg3 {[%clk 0:01:28]} 27. Ne4 {[%clk 0:01:03]}  Nxg2 {[%clk 0:01:15]} 28. Kxg2 {[%clk 0:01:04]}  Qe7 {[%clk 0:01:07]} 29. Re1 {[%clk 0:00:56]}  Qg7 {[%clk 0:00:55]} 30. Ng5+ {[%clk 0:00:51]}  Kh8 {[%clk 0:00:53]} 31. Ne6 {[%clk 0:00:41]}  Rf2+ {[%clk 0:00:49]} 32. Kg1 {[%clk 0:00:41]}  Qf6 {[%clk 0:00:46]} 33. Bf4 {[%clk 0:00:21]}  Re8 {[%clk 0:00:37]} 34. Re4 {[%clk 0:00:16]}  Rxe6 {[%clk 0:00:19]} 35. dxe6 {[%clk 0:00:15]}  d5 {[%clk 0:00:19]} 36. e7 {[%clk 0:00:11]}  dxc4 {[%clk 0:00:17]} 37. e8=Q+ {[%clk 0:00:11]}  Kh7 {[%clk 0:00:17]} 38. Re7+ {[%clk 0:00:11]}  Qxe7 {[%clk 0:00:14]} 39. Qxe7+ {[%clk 0:00:11]}  Kg6 {[%clk 0:00:14]} 40. Qe6+ {[%clk 0:00:11]}  Kg7 {[%clk 0:00:08]} 41. Be5+ {[%clk 0:00:11]} 1-0